bitfinex/quotes_BTCUSD_20250822
["timestamp","ask_amount","ask_price","bid_price","bid_amount"]
[1755829720764,2.513582,113780.0,113760.0,0.00308]
[1755829720973,0.1564,113790.0,113770.0,0.00202]
[1755829721198,0.16464883,113790.0,113770.0,0.028459]
[1755829721406,0.1564,113790.0,113770.0,0.031539]
[1755829722127,0.1564,113790.0,113780.0,0.00308]
[1755829722260,0.00199809,113790.0,113780.0,0.0051]
[1755829722919,0.00199809,113790.0,113770.0,0.029519]
[1755829723090,0.00199809,113790.0,113770.0,0.00308]
[1755829723287,0.00199809,113790.0,113780.0,0.026438]
[1755829723522,0.01575911,113790.0,113780.0,0.026438]
[1755829723909,0.01575911,113790.0,113780.0,0.031538]
[1755829728362,0.04596187,113790.0,113780.0,0.031538]
[1755829728567,0.01575911,113790.0,113780.0,0.031538]
[1755829729433,4.809e-05,113790.0,113780.0,0.031538]
[1755829729929,4.809e-05,113790.0,113780.0,0.0417356]
[1755829731638,0.03595218,113790.0,113780.0,0.0417356]
[1755829733925,0.04971207,113790.0,113780.0,0.0417356]
[1755829736699,0.04971207,113790.0,113780.0,0.0427356]
[1755829737600,0.04971207,113790.0,113780.0,0.0437356]
[1755829740424,0.05177207,113790.0,113780.0,0.0386356]
[1755829740645,0.05177207,113790.0,113780.0,0.0436256]
[1755829741342,0.04971207,113790.0,113780.0,0.0436256]
[1755829741569,0.05177207,113790.0,113780.0,0.0436256]
[1755829742229,0.04971207,113790.0,113780.0,0.0436256]
[1755829743096,0.05177207,113790.0,113780.0,0.0436256]
[1755829743535,0.05177207,113790.0,113780.0,0.0386356]
[1755829743752,0.05177207,113790.0,113780.0,0.030448]
[1755829744192,0.04971207,113790.0,113780.0,0.03562522]
[1755829744413,0.03595218,113790.0,113780.0,0.033428]
[1755829747335,0.04971105,113790.0,113780.0,0.033428]
[1755829747557,0.04971105,113790.0,113780.0,0.0704846]
[1755829750570,0.03595218,113790.0,113780.0,0.0704846]
[1755829753838,0.04971151,113790.0,113780.0,0.0704846]
[1755829754187,0.04971151,113790.0,113780.0,0.2266446]
[1755829758520,0.05183151,113790.0,113780.0,0.2216546]
[1755829758960,0.05476151,113790.0,113780.0,0.184558]
[1755829759181,0.0630179,113790.0,113780.0,0.184558]
[1755829760959,0.0630179,113790.0,113780.0,0.028438]
[1755829761617,0.0600879,113790.0,113780.0,0.028438]
[1755829761826,0.0600879,113790.0,113780.0,0.0809006]
[1755829762543,0.04632857,113790.0,113780.0,0.0809006]
[1755829762896,0.04925857,113790.0,113780.0,0.0809006]
[1755829763316,0.04632857,113790.0,113780.0,0.0809006]
[1755829763543,0.04925857,113790.0,113780.0,0.0809006]
[1755829763958,0.38632857,113790.0,113780.0,0.028438]
[1755829764177,0.37807218,113790.0,113780.0,0.028438]
[1755829764832,0.37807218,113790.0,113780.0,0.033468]
[1755829764833,0.37595218,113790.0,113780.0,0.033468]
[1755829765592,0.38971144,113790.0,113780.0,0.033468]
[1755829765799,0.39184144,113790.0,113780.0,0.033468]
[1755829765962,0.39184144,113790.0,113780.0,0.0594706]
[1755829768409,0.05184144,113790.0,113780.0,0.0594706]
[1755829768819,0.05184144,113790.0,113780.0,0.028438]
[1755829769250,0.04101218,113790.0,113780.0,0.028438]
[1755829770147,0.03808218,113790.0,113780.0,0.028438]
[1755829771857,0.00019,113790.0,113780.0,0.028438]
[1755829772656,0.01394924,113790.0,113780.0,0.028438]
[1755829773309,0.01394924,113790.0,113780.0,0.002]
[1755829773525,0.51394924,113790.0,113780.0,0.00493]
[1755829773729,2.85466324,113790.0,113780.0,0.00493]
[1755829773932,0.01394924,113790.0,113780.0,0.002]
[1755829774130,0.51394924,113790.0,113780.0,0.002]
[1755829774329,2.85466324,113790.0,113780.0,0.002]
[1755829774534,0.01394924,113790.0,113780.0,0.002]
[1755829774777,0.51394924,113790.0,113780.0,0.002]
[1755829775008,2.85466324,113790.0,113780.0,0.002]
[1755829775212,0.01394924,113790.0,113780.0,0.002]
[1755829775467,2.35578324,113790.0,113780.0,0.002]
[1755829776044,2.35466324,113790.0,113780.0,0.002]
[1755829776300,2.35578324,113790.0,113780.0,0.001]
[1755829776518,2.36403783,113790.0,113780.0,0.001]
[1755829776764,2.36403783,113790.0,113760.0,0.00293]
[1755829776985,2.497874,113780.0,113750.0,0.09688004]
[1755829777203,0.00179,113760.0,113750.0,0.07336804]
[1755829777391,0.00179,113760.0,113750.0,0.09337884]
[1755829777392,2.343624,113760.0,113750.0,0.09337884]
[1755829777609,2.498504,113760.0,113750.0,0.09337884]
[1755829777966,2.51338754,113760.0,113730.0,0.32345504]
[1755829778183,2.340714,113750.0,113730.0,0.25288504]
[1755829778379,2.341834,113750.0,113730.0,0.07043804]
[1755829778604,0.08140354,113760.0,113740.0,0.0021]
[1755829778809,2.840714,113750.0,113740.0,0.00503]
[1755829779008,2.340714,113750.0,113740.0,0.00503]
[1755829779524,2.340714,113750.0,113740.0,0.00507809]
[1755829779709,0.16976354,113760.0,113740.0,0.00507809]
[1755829779915,0.17076354,113760.0,113750.0,0.07043804]
[1755829780134,0.01476354,113760.0,113750.0,0.08272665]
[1755829780246,0.51476354,113760.0,113750.0,0.08272665]
[1755829780486,2.85547754,113760.0,113750.0,0.08272665]
[1755829780719,0.01476354,113760.0,113750.0,0.08272665]
[1755829780936,0.51476354,113760.0,113750.0,0.08272665]
[1755829781163,2.85447754,113760.0,113750.0,0.08272665]
[1755829781386,0.01376354,113760.0,113750.0,0.08272665]
[1755829781606,0.01376354,113760.0,113750.0,0.23876665]
[1755829781831,0.15604,113790.0,113750.0,0.26520665]
[1755829782062,2.340714,113780.0,113770.0,0.07043804]
[1755829782281,2.340714,113790.0,113770.0,0.07546804]
[1755829782499,2.340714,113790.0,113780.0,0.00293]
[1755829782744,2.342504,113790.0,113780.0,0.00293]
[1755829783356,2.342504,113790.0,113780.0,0.00503]
[1755829785549,2.342504,113790.0,113780.0,0.00293]
[1755829785756,2.35626371,113790.0,113780.0,0.00293]
[1755829788650,2.1344878,113790.0,113780.0,0.00293]
[1755829788870,2.13448871,113790.0,113780.0,0.00293]
[1755829789104,2.13448871,113790.0,113770.0,0.10010604]
[1755829789335,2.118939,113780.0,113770.0,0.11016473]
[1755829789600,2.118939,113780.0,113770.0,0.11221473]
[1755829791039,2.120729,113780.0,113770.0,0.10793473]
[1755829791256,0.00179,113780.0,113770.0,0.10793473]
[1755829792114,0.01375971,113790.0,113770.0,0.11321473]
[1755829792329,2.118939,113780.0,113770.0,0.11321473]
[1755829792761,2.118939,113780.0,113770.0,0.11421473]
[1755829793185,0.00179,113780.0,113770.0,0.11421473]
[1755829794735,0.00179,113780.0,113770.0,0.11216473]
[1755829795334,0.00179,113780.0,113770.0,0.11421473]
[1755829795559,0.01554992,113780.0,113770.0,0.11421473]
[1755829795822,0.01554992,113780.0,113770.0,0.09892413]
[1755829796448,0.01554992,113780.0,113770.0,0.10215413]
[1755829796873,0.01554992,113780.0,113770.0,0.09892413]
[1755829797502,0.01554992,113780.0,113770.0,0.10215413]
[1755829797726,0.01554992,113780.0,113770.0,0.10420413]
[1755829797963,0.01554992,113780.0,113770.0,0.13022054]
[1755829799032,0.01554992,113780.0,113770.0,0.09892413]
[1755829799220,0.01666992,113780.0,113770.0,0.00204809]
[1755829799421,2.277769,113780.0,113770.0,0.00204809]
[1755829800066,2.277769,113780.0,113770.0,0.00104809]
[1755829800276,2.277769,113780.0,113770.0,4.809e-05]
[1755829800698,2.45354681,113780.0,113770.0,4.809e-05]
[1755829800926,3.07321912,113780.0,113770.0,4.809e-05]
[1755829801146,3.07321895,113780.0,113770.0,4.809e-05]
[1755829801359,2.89744158,113780.0,113770.0,4.809e-05]
[1755829801579,2.93755386,113780.0,113770.0,4.809e-05]
[1755829802001,2.89744159,113780.0,113770.0,4.809e-05]
[1755829802229,2.72607257,113780.0,113770.0,4.809e-05]
[1755829802466,2.2150637,113780.0,113770.0,4.809e-05]
[1755829802668,2.346289,113780.0,113770.0,4.809e-05]
[1755829802913,2.191369,113780.0,113770.0,4.809e-05]
[1755829803145,2.3610515,113780.0,113770.0,0.00532809]
[1755829803370,2.2916215,113780.0,113770.0,0.00532809]
[1755829803835,2.0826895,113780.0,113770.0,0.00532809]
[1755829804256,0.0167625,113780.0,113770.0,0.00532809]
[1755829804668,0.5185525,113780.0,113770.0,4.809e-05]
[1755829804890,2.17101656,113780.0,113770.0,4.809e-05]
[1755829805123,0.17579512,113770.0,113750.0,20.0]
[1755829805334,0.65883,113760.0,113750.0,20.0]
[1755829805560,2.27550069,113760.0,113750.0,19.52033475]
[1755829805789,2.86991434,113760.0,113750.0,19.52012475]
[1755829806051,2.87174037,113760.0,113750.0,19.52007666]
[1755829806526,2.88550737,113760.0,113750.0,19.52007666]
[1755829806735,2.92921586,113760.0,113750.0,19.04041141]
[1755829807174,2.90604189,113760.0,113750.0,19.04041141]
[1755829807393,2.70458737,113760.0,113750.0,19.04041141]
[1755829807614,2.47877865,113760.0,113750.0,19.04041141]
[1755829807882,2.84042191,113760.0,113750.0,19.04041141]
[1755829808110,2.84533191,113760.0,113750.0,19.04041141]
[1755829808332,2.79833191,113760.0,113750.0,19.04041141]
[1755829808559,2.84831813,113760.0,113750.0,19.04041141]
[1755829808792,2.83916092,113760.0,113750.0,19.04041141]
[1755829809006,2.82749721,113760.0,113750.0,19.04041141]
[1755829809223,2.82849721,113760.0,113750.0,19.04041141]
[1755829809450,2.83149721,113760.0,113750.0,19.04041141]
[1755829809665,2.85649721,113760.0,113750.0,18.60067418]
[1755829811178,2.70057721,113760.0,113750.0,18.60067418]
[1755829811413,2.85649721,113760.0,113750.0,18.68754383]
[1755829811652,2.44885849,113760.0,113750.0,18.60067418]
[1755829811879,2.80088576,113760.0,113750.0,18.60067418]
[1755829812121,2.80179576,113760.0,113750.0,18.60067418]
[1755829812586,2.80088576,113760.0,113750.0,18.60067418]
[1755829813435,2.48292304,113760.0,113750.0,18.60067418]
[1755829813697,2.63884304,113760.0,113750.0,18.60067418]
[1755829814346,2.81465176,113760.0,113750.0,18.60067418]
[1755829814755,2.81556176,113760.0,113750.0,18.60067418]
[1755829815211,2.81552382,113760.0,113750.0,18.60067418]
[1755829815411,2.81461382,113760.0,113750.0,18.60067418]
[1755829815619,2.4828851,113760.0,113750.0,18.60067418]
[1755829815825,2.51378128,113760.0,113750.0,18.60390418]
[1755829816037,2.46438167,113760.0,113750.0,18.69077383]
[1755829816260,2.63406644,113760.0,113750.0,18.60390418]
[1755829816472,2.47814644,113760.0,113750.0,18.60390418]
[1755829816680,1.99332124,113760.0,113750.0,18.60390418]
[1755829816885,2.14936124,113760.0,113750.0,18.60390418]
[1755829817304,1.99332124,113760.0,113750.0,18.60390418]
[1755829817531,2.14936124,113760.0,113750.0,18.69077383]
[1755829817760,2.14982124,113760.0,113750.0,18.60067418]
[1755829818368,2.16622997,113760.0,113750.0,18.60067418]
[1755829818577,2.14536124,113760.0,113750.0,18.60369418]
[1755829818796,2.12155199,113760.0,113750.0,18.60369418]
[1755829819016,2.12255199,113760.0,113750.0,18.60369418]
[1755829819683,1.96797199,113760.0,113750.0,18.60369418]
[1755829819908,2.78684631,113760.0,113750.0,18.60067418]
[1755829820118,2.81250943,113760.0,113750.0,18.60067418]
[1755829820324,2.81341943,113760.0,113750.0,18.60067418]
[1755829820531,2.84458104,113760.0,113750.0,18.60067418]
[1755829821155,2.91348144,113760.0,113750.0,18.60067418]
[1755829821442,2.91348228,113760.0,113750.0,18.60067418]
[1755829821640,2.91048228,113760.0,113750.0,18.60067418]
[1755829821869,2.95975178,113760.0,113750.0,18.60067418]
[1755829822090,2.91748228,113760.0,113750.0,18.60067418]
[1755829822316,2.9380168,113760.0,113750.0,18.59488428]
[1755829822566,2.95819077,113760.0,113750.0,18.14633017]
[1755829822792,3.07881244,113760.0,113750.0,18.09985314]
[1755829823024,3.07881244,113760.0,113750.0,18.07488256]
[1755829823249,3.07881244,113760.0,113750.0,18.06606525]
[1755829823476,3.0694072,113760.0,113750.0,18.03520465]
[1755829823723,2.70701101,113760.0,113750.0,18.02638734]
[1755829823962,2.93437101,113760.0,113750.0,18.02638734]
[1755829824183,2.92437101,113760.0,113750.0,18.01757003]
[1755829824409,2.94790553,113760.0,113750.0,18.00875272]
[1755829824629,2.97465755,113760.0,113750.0,18.004731]
[1755829824859,2.8817692,113760.0,113750.0,17.99591369]
[1755829825079,2.77636503,113760.0,113750.0,17.99591369]
[1755829825310,2.59634301,113760.0,113750.0,17.99591369]
[1755829825532,2.75334301,113760.0,113750.0,17.99591369]
[1755829826154,2.72834301,113760.0,113750.0,17.99591369]
[1755829826367,2.75334301,113760.0,113750.0,17.99591369]
[1755829827033,2.75134301,113760.0,113750.0,17.99591369]
[1755829827241,2.72671739,113760.0,113750.0,17.99591369]
[1755829827447,2.75128075,113760.0,113750.0,17.99591369]
[1755829827660,2.59337075,113760.0,113750.0,17.99791369]
[1755829827892,2.7502513,113760.0,113750.0,17.99791369]
[1755829828108,2.34110258,113760.0,113750.0,18.00093369]
[1755829828331,2.70998257,113760.0,113750.0,18.00093369]
[1755829829639,2.48421385,113760.0,113750.0,18.00093369]
[1755829830268,2.71002257,113760.0,113750.0,18.00093369]
[1755829830488,2.71150513,113760.0,113750.0,18.00093369]
[1755829830912,2.53423641,113760.0,113750.0,18.00093369]
[1755829831118,2.51069041,113760.0,113750.0,18.00093369]
[1755829831539,2.35381041,113760.0,113750.0,18.00093369]
[1755829831761,2.51053041,113760.0,113750.0,18.08780334]
[1755829831980,2.51053041,113760.0,113750.0,18.00093369]
[1755829832403,2.51037041,113760.0,113750.0,18.00093369]
[1755829832619,2.35381041,113760.0,113750.0,18.00093369]
[1755829832865,2.51037041,113760.0,113750.0,18.00093369]
[1755829833410,2.51038152,113760.0,113750.0,18.00093369]
[1755829833821,1.8515469,113760.0,113750.0,18.08780334]
[1755829834034,1.8250929,113760.0,113750.0,18.08780334]
[1755829834345,1.9625925,113760.0,113750.0,18.08780334]
[1755829834517,1.81996335,113760.0,113750.0,18.08780334]
[1755829834710,1.93105145,113760.0,113750.0,18.08780334]
[1755829834913,1.93105145,113760.0,113750.0,18.08580334]
[1755829835118,1.77469145,113760.0,113750.0,18.08780334]
[1755829835316,1.93105145,113760.0,113750.0,18.09180334]
[1755829835547,1.93105145,113760.0,113750.0,18.08780334]
[1755829836476,1.90637396,113760.0,113750.0,18.08780334]
[1755829836686,1.93108515,113760.0,113750.0,18.08780334]
[1755829836869,1.77472515,113760.0,113750.0,18.08780334]
[1755829837158,1.93088334,113760.0,113750.0,18.09280334]
[1755829837370,1.75001396,113760.0,113750.0,18.24896334]
[1755829837586,1.75001396,113760.0,113750.0,18.24696334]
[1755829837801,0.01376496,113760.0,113750.0,18.24896334]
[1755829838248,0.01376496,113760.0,113750.0,18.24696334]
[1755829838688,0.01376496,113760.0,113750.0,18.24996334]
[1755829839134,0.15612,113770.0,113750.0,18.24996334]
[1755829839356,0.5,113770.0,113760.0,0.23390564]
[1755829839568,1.736249,113770.0,113760.0,0.25757326]
[1755829840442,1.737249,113770.0,113760.0,0.25757326]
[1755829840651,0.15622411,113780.0,113760.0,0.25757326]
[1755829840911,2.39247311,113780.0,113760.0,0.26255326]
[1755829841101,0.001,113770.0,113760.0,0.26255326]
[1755829841523,0.001,113770.0,113760.0,0.26557326]
[1755829841732,0.65622411,113780.0,113760.0,0.26057326]
[1755829841952,0.65722411,113780.0,113760.0,0.26355326]
[1755829842200,0.65722411,113780.0,113770.0,0.00302]
[1755829842423,0.65722411,113780.0,113770.0,0.00519]
[1755829842637,0.50114411,113780.0,113770.0,0.00519]
[1755829842854,0.15710411,113780.0,113770.0,0.00519]
[1755829843068,0.65710411,113780.0,113770.0,0.00519]
[1755829843288,2.39335311,113780.0,113770.0,0.00519]
[1755829843576,0.15710411,113780.0,113770.0,0.00519]
[1755829843836,0.65610411,113780.0,113770.0,0.00519]
[1755829844045,2.39235311,113780.0,113770.0,0.00519]
[1755829844225,0.15610411,113780.0,113770.0,0.00519]
[1755829844433,0.65610411,113780.0,113770.0,0.00519]
[1755829844636,0.65610411,113780.0,113770.0,0.01019]
[1755829844637,2.39235311,113780.0,113770.0,0.01019]
[1755829844842,0.15610411,113780.0,113770.0,0.01019]
[1755829845051,0.66986541,113780.0,113770.0,0.01019]
[1755829845257,2.40611441,113780.0,113770.0,0.01019]
[1755829845460,0.16986541,113780.0,113770.0,0.01019]
[1755829845669,0.66986541,113780.0,113770.0,0.01019]
[1755829845877,2.40611441,113780.0,113770.0,0.01019]
[1755829846088,0.16986541,113780.0,113770.0,0.01019]
[1755829846290,0.66986541,113780.0,113770.0,0.03644733]
[1755829846516,2.40611441,113780.0,113770.0,0.03644733]
[1755829846723,0.16986541,113780.0,113770.0,0.03644733]
[1755829846934,0.66986541,113780.0,113770.0,0.03644733]
[1755829847147,2.40611441,113780.0,113770.0,0.03644733]
[1755829847352,0.16986541,113780.0,113770.0,0.03644733]
[1755829847565,0.66986541,113780.0,113770.0,0.03644733]
[1755829847780,2.40611441,113780.0,113770.0,0.03644733]
[1755829847982,0.16986541,113780.0,113770.0,0.01019]
[1755829848194,0.51390541,113780.0,113770.0,0.01019]
[1755829848399,1.75015441,113780.0,113770.0,0.01019]
[1755829848644,0.01390541,113780.0,113770.0,0.01019]
[1755829848852,0.51390541,113780.0,113770.0,0.01019]
[1755829849062,0.51390541,113780.0,113770.0,0.03644733]
[1755829849263,0.50014411,113780.0,113770.0,0.03644733]
[1755829850511,0.50014411,113780.0,113770.0,0.01019]
[1755829851745,0.51390549,113780.0,113770.0,0.01019]
[1755829852908,0.50014411,113780.0,113770.0,0.01019]
[1755829853533,1.73785311,113780.0,113770.0,0.005]
[1755829853756,1.89231311,113780.0,113770.0,0.00997]
[1755829853960,1.89377311,113780.0,113770.0,0.0130408]
[1755829854166,1.89377311,113780.0,113770.0,0.005]
[1755829854600,1.90753444,113780.0,113770.0,0.005]
[1755829856415,1.90753444,113780.0,113770.0,0.002]
[1755829856626,1.90753444,113780.0,113760.0,0.07340804]
[1755829856855,1.736249,113770.0,113760.0,0.07340804]
[1755829857081,1.737709,113770.0,113760.0,0.16227769]
[1755829857338,0.00146,113770.0,113760.0,0.16227769]
[1755829857526,0.50146,113770.0,113760.0,0.16227769]
[1755829857756,2.237709,113770.0,113760.0,0.16427769]
[1755829857983,0.00146,113770.0,113760.0,0.16427769]
[1755829858183,0.5,113770.0,113760.0,0.16727769]
[1755829858415,2.236249,113770.0,113760.0,0.16727769]
[1755829858640,1.736249,113770.0,113760.0,0.16727769]
[1755829859095,1.736249,113770.0,113760.0,0.16527769]
[1755829859518,1.736249,113770.0,113760.0,0.09683965]
[1755829859739,1.737709,113770.0,113760.0,0.005]
[1755829860475,1.738619,113770.0,113760.0,0.005]
[1755829860698,1.75506487,113770.0,113760.0,0.005]
[1755829860922,1.76328846,113770.0,113760.0,0.005]
[1755829861347,1.76328846,113770.0,113760.0,0.002]
[1755829861787,1.76328846,113770.0,113760.0,0.004]
[1755829862822,1.7770525,113770.0,113760.0,0.002]
[1755829863034,1.95284576,113770.0,113760.0,0.002]
[1755829863257,1.93640854,113770.0,113760.0,0.003]
[1755829863474,1.8022345,113770.0,113760.0,0.001]
[1755829863917,1.8022345,113770.0,113760.0,0.002]
[1755829864120,2.48026675,113770.0,113760.0,0.002]
[1755829865554,2.63614675,113770.0,113760.0,0.002]
[1755829865761,2.68476063,113770.0,113760.0,0.002]
[1755829865965,0.17580872,113760.0,113750.0,17.99591369]
[1755829866175,2.20488577,113760.0,113750.0,17.99591369]
[1755829866408,2.20489154,113760.0,113750.0,17.99591369]
[1755829866615,2.22989154,113760.0,113750.0,17.99591369]
[1755829867253,2.2442583,113760.0,113750.0,17.99691369]
[1755829867495,2.2462583,113760.0,113750.0,17.99691369]
[1755829867718,2.34287218,113760.0,113750.0,17.99591369]
[1755829868130,2.34587218,113760.0,113750.0,17.99591369]
[1755829868331,2.34587218,113760.0,113750.0,17.98214631]
[1755829869387,1.95241105,113760.0,113750.0,17.98214631]
[1755829869593,2.06722815,113760.0,113750.0,17.98214631]
[1755829870011,2.24303687,113760.0,113750.0,17.98214631]
[1755829870216,2.06722815,113760.0,113750.0,17.98214631]
[1755829870625,2.08467717,113760.0,113750.0,17.98214631]
[1755829870829,2.08267717,113760.0,113750.0,17.98214631]
[1755829871039,1.90934815,113760.0,113750.0,18.07198596]
[1755829871242,2.08921915,113760.0,113750.0,18.07198596]
[1755829871461,1.91436194,113760.0,113750.0,17.98511631]
[1755829871662,2.06406441,113760.0,113750.0,17.98511631]
[1755829872511,2.04757043,113760.0,113750.0,17.98511631]
[1755829872717,2.06400259,113760.0,113750.0,17.98511631]
[1755829872927,2.06400149,113760.0,113750.0,17.98511631]
[1755829873554,2.06400086,113760.0,113750.0,17.98511631]
[1755829874990,1.87823742,113760.0,113750.0,17.98511631]
[1755829875254,1.87967786,113760.0,113750.0,18.07198596]
[1755829875460,1.87823786,113760.0,113750.0,18.07198596]
[1755829876305,1.87823786,113760.0,113750.0,17.98511631]
[1755829876545,1.87969786,113760.0,113750.0,17.98214631]
[1755829876773,1.87969786,113760.0,113750.0,17.98314631]
[1755829877319,2.5586893,113760.0,113750.0,17.98414631]
[1755829877615,2.58378174,113760.0,113750.0,17.98414631]
[1755829877827,2.58378174,113760.0,113750.0,17.98314631]
[1755829878074,2.58378174,113760.0,113750.0,17.98214631]
[1755829878556,2.58378245,113760.0,113750.0,17.98214631]
[1755829879335,2.63378245,113760.0,113750.0,17.98214631]
[1755829879553,2.58378245,113760.0,113750.0,17.98214631]
[1755829879769,2.63378245,113760.0,113750.0,17.98214631]
[1755829879991,2.65878245,113760.0,113750.0,17.98214631]
[1755829880456,2.65787245,113760.0,113750.0,17.98214631]
[1755829880659,2.61910486,113760.0,113750.0,17.98214631]
[1755829880876,2.61910486,113760.0,113750.0,18.06901596]
[1755829881087,2.64501486,113760.0,113750.0,17.98214631]
[1755829881506,2.64410486,113760.0,113750.0,17.98214631]
[1755829881712,2.64503206,113760.0,113750.0,17.98214631]
[1755829881917,2.64412206,113760.0,113750.0,17.98214631]
[1755829882127,2.64503206,113760.0,113750.0,17.98214631]
[1755829882559,2.61912206,113760.0,113750.0,18.06901596]
[1755829882811,2.41324206,113760.0,113750.0,18.06901596]
[1755829883040,2.23597334,113760.0,113750.0,18.07211596]
[1755829883266,2.56766206,113760.0,113750.0,18.07211596]
[1755829883474,2.61766206,113760.0,113750.0,18.07211596]
[1755829884167,2.61766206,113760.0,113750.0,17.98524631]
[1755829884386,2.61912206,113760.0,113750.0,17.98524631]
[1755829884842,2.56912206,113760.0,113750.0,17.98214631]
[1755829885067,2.56766206,113760.0,113750.0,17.98524631]
[1755829885315,2.56912206,113760.0,113750.0,17.98524631]
[1755829885992,2.39185334,113760.0,113750.0,17.98524631]
[1755829886214,2.40562006,113760.0,113750.0,18.07211596]
[1755829886634,2.58142878,113760.0,113750.0,18.07211596]
[1755829886894,2.58142878,113760.0,113750.0,17.98524631]
[1755829887136,2.58196878,113760.0,113750.0,17.98524631]
[1755829888085,2.58196878,113760.0,113750.0,17.98214631]
[1755829888312,2.63058266,113760.0,113750.0,17.98214631]
[1755829888755,2.63149266,113760.0,113750.0,17.98214631]
[1755829889007,2.42923394,113760.0,113750.0,18.07211596]
[1755829889247,2.37916906,113760.0,113750.0,18.07211596]
[1755829889675,2.37916906,113760.0,113750.0,17.98524631]
[1755829890609,2.36172004,113760.0,113750.0,17.98524631]
[1755829890806,2.33089272,113760.0,113750.0,17.98524631]
[1755829891014,2.36181223,113760.0,113750.0,17.98524631]
[1755829891448,2.34804607,113760.0,113750.0,17.98524631]
[1755829891743,2.34804635,113760.0,113750.0,17.98524631]
[1755829892174,2.34804635,113760.0,113750.0,18.07211596]
[1755829892605,1.70734265,113760.0,113750.0,18.07211596]
[1755829892826,1.86322265,113760.0,113750.0,18.07211596]
[1755829894011,1.87698777,113760.0,113750.0,18.07211596]
[1755829894652,1.87698777,113760.0,113750.0,18.07311596]
[1755829895761,1.87694777,113760.0,113750.0,18.07311596]
[1755829896208,1.87694777,113760.0,113750.0,18.07411596]
[1755829897187,1.72111698,113760.0,113750.0,18.07411596]
[1755829897402,1.87077308,113760.0,113750.0,18.07411596]
[1755829897564,1.62836354,113760.0,113750.0,18.07411596]
[1755829897763,1.72009112,113760.0,113750.0,18.07411596]
[1755829898654,1.56425112,113760.0,113750.0,18.22995596]
[1755829898877,1.72009112,113760.0,113750.0,18.22995596]
[1755829899402,1.706326,113760.0,113750.0,18.22995596]
[1755829900835,1.706326,113760.0,113750.0,18.07411596]
[1755829902509,1.72009017,113760.0,113750.0,18.07411596]
[1755829903360,1.72009017,113760.0,113750.0,17.98724631]
[1755829903567,1.74626798,113760.0,113750.0,17.98724631]
[1755829903774,1.73250381,113760.0,113750.0,17.98724631]
[1755829904193,1.73250381,113760.0,113750.0,17.98414631]
[1755829904397,1.73250381,113760.0,113750.0,17.98724631]
[1755829904614,1.77807808,113760.0,113750.0,18.07411596]
[1755829904824,1.7718983,113760.0,113750.0,17.98414631]
[1755829905038,2.47514275,113760.0,113750.0,17.98414631]
[1755829905461,2.48890861,113760.0,113750.0,17.98414631]
[1755829906117,2.48890861,113760.0,113750.0,17.98314631]
[1755829906327,2.48891105,113760.0,113750.0,17.98314631]
[1755829906539,2.48982105,113760.0,113750.0,17.98214631]
[1755829907183,2.44951656,113760.0,113750.0,17.98214631]
[1755829907404,2.45042656,113760.0,113750.0,17.98214631]
[1755829907627,2.47313044,113760.0,113750.0,17.98214631]
[1755829907860,2.47404044,113760.0,113750.0,17.98214631]
[1755829908104,2.47313044,113760.0,113750.0,17.98214631]
[1755829908769,2.47313044,113760.0,113750.0,18.06901596]
[1755829909180,2.45936458,113760.0,113750.0,18.06901596]
[1755829909405,2.44082491,113760.0,113750.0,17.98214631]
[1755829909621,2.46554561,113760.0,113750.0,17.98214631]
[1755829909841,2.49199886,113760.0,113750.0,17.98214631]
[1755829910203,2.49199895,113760.0,113750.0,17.98214631]
[1755829911743,2.46838507,113760.0,113750.0,17.98214631]
[1755829912603,2.46838725,113760.0,113750.0,17.98214631]
[1755829913717,2.46838725,113760.0,113750.0,17.98534631]
[1755829914321,2.46838725,113760.0,113750.0,17.98214631]
[1755829914725,2.50866501,113760.0,113750.0,17.98214631]
[1755829915015,2.52243154,113760.0,113750.0,17.98214631]
[1755829915237,2.50344889,113760.0,113750.0,17.98214631]
[1755829915453,2.53998848,113760.0,113750.0,17.98214631]
[1755829915670,2.54616959,113760.0,113750.0,17.98214631]
[1755829915895,2.57207959,113760.0,113750.0,17.78480182]
[1755829916108,2.88317236,113760.0,113750.0,17.33159202]
[1755829916315,2.94425385,113760.0,113750.0,17.33159202]
[1755829916530,2.8967355,113760.0,113750.0,17.32277496]
[1755829916713,2.8967355,113760.0,113750.0,17.3139579]
[1755829916914,2.8967355,113760.0,113750.0,17.11661341]
[1755829917057,2.93336903,113760.0,113750.0,16.86540361]
[1755829917301,3.06479664,113760.0,113750.0,16.53154387]
[1755829917506,3.06479664,113760.0,113750.0,15.91672681]
[1755829917707,3.06979664,113760.0,113750.0,15.81572681]
[1755829917932,2.91395664,113760.0,113750.0,15.57870552]
[1755829918134,3.06971664,113760.0,113750.0,15.42547413]
[1755829918332,3.06147511,113760.0,113750.0,15.41665707]
[1755829918562,3.05321602,113760.0,113750.0,15.38330006]
[1755829918734,3.05527354,113760.0,113750.0,15.374483]
[1755829918934,3.06767625,113760.0,113750.0,15.374483]
[1755829919144,2.87832572,113760.0,113750.0,14.74272605]
[1755829919665,2.57672508,113760.0,113750.0,13.83108971]
[1755829919881,2.57172508,113760.0,113750.0,13.79141291]
[1755829920085,2.57472508,113760.0,113750.0,13.79141291]
[1755829920288,2.57272508,113760.0,113750.0,13.78259585]
[1755829920488,2.56972508,113760.0,113750.0,13.75173611]
[1755829920694,2.57572508,113760.0,113750.0,13.74391905]
[1755829920846,2.19333908,113760.0,113750.0,13.06245243]
[1755829921046,2.07994108,113760.0,113750.0,12.9000748]
[1755829921252,2.04829881,113760.0,113750.0,12.47829367]
[1755829921460,2.12629881,113760.0,113750.0,11.98797475]
[1755829921911,1.67368253,113760.0,113750.0,11.94828312]
[1755829922090,1.90144253,113760.0,113750.0,11.03928312]
[1755829922291,1.95633613,113760.0,113750.0,11.02998781]
[1755829922556,1.95933613,113760.0,113750.0,11.02998781]
[1755829922689,1.96024613,113760.0,113750.0,11.02998781]
[1755829922883,2.04711578,113760.0,113750.0,11.02998781]
[1755829923464,2.00683802,113760.0,113750.0,11.02998781]
[1755829923907,2.00066828,113760.0,113750.0,11.02998781]
[1755829924121,2.00683078,113760.0,113750.0,11.02998781]
[1755829924529,2.00683078,113760.0,113750.0,10.52498781]
[1755829924746,1.98315527,113760.0,113750.0,10.12098781]
[1755829924963,1.98315527,113760.0,113750.0,9.51498781]
[1755829925132,2.0147253,113760.0,113750.0,9.41398781]
[1755829925278,1.98315527,113760.0,113750.0,9.31298781]
[1755829925531,1.95815527,113760.0,113750.0,9.21198781]
[1755829925744,1.98224527,113760.0,113750.0,9.21198781]
[1755829926210,2.00590701,113760.0,113750.0,9.21198781]
[1755829926422,1.95590701,113760.0,113750.0,9.21198781]
[1755829926645,1.93090701,113760.0,113750.0,9.21198781]
[1755829926905,1.84187771,113760.0,113750.0,9.21731781]
[1755829927141,1.82642701,113760.0,113750.0,9.21731781]